[Event "*** Titled Tuesday Blitz"]
[Site "Chess.com"]
[Date "2020.04.14"]
[Round "1"]
[White "steepedgames"]
[Black "AtabayevSaparmyrat"]
[Result "1/2-1/2"]
[WhiteElo "2426"]
[BlackElo "2783"]
[TimeControl "180+1"]
[EndTime "10:08:45 PDT"]
[Termination "Game drawn by repetition"]

1. d4 {[%clk 0:02:59.5]} 1... Nf6 {[%clk 0:03:00.2]} 2. Nf3 {[%clk 0:03:00]}
2... d5 {[%clk 0:03:00.1]} 3. Bg5 {[%clk 0:02:55.2]} 3... Ne4 {[%clk 0:02:57.5]}
4. Bf4 {[%clk 0:02:54.6]} 4... c5 {[%clk 0:02:57.1]} 5. e3 {[%clk 0:02:54.3]}
5... Qb6 {[%clk 0:02:56.1]} 6. Qc1 {[%clk 0:02:53.9]} 6... Nc6 {[%clk
0:02:55.1]} 7. c3 {[%clk 0:02:53.9]} 7... Bf5 {[%clk 0:02:52.9]} 8. Nbd2 {[%clk
0:02:53.1]} 8... e6 {[%clk 0:02:52.7]} 9. a3 {[%clk 0:02:35.8]} 9... Be7 {[%clk
0:02:44.7]} 10. b4 {[%clk 0:02:24.3]} 10... cxb4 {[%clk 0:02:43.6]} 11. cxb4
{[%clk 0:02:20.1]} 11... Nxd2 {[%clk 0:02:32.8]} 12. Nxd2 {[%clk 0:02:17.8]}
12... a6 {[%clk 0:02:29.4]} 13. Be2 {[%clk 0:02:09.6]} 13... O-O {[%clk
0:02:28.8]} 14. O-O {[%clk 0:02:09.3]} 14... Rfc8 {[%clk 0:02:25.9]} 15. Qb2
{[%clk 0:02:06.3]} 15... a5 {[%clk 0:02:20.6]} 16. b5 {[%clk 0:02:03.5]} 16...
a4 {[%clk 0:02:19.4]} 17. Rac1 {[%clk 0:01:53.6]} 17... Na5 {[%clk 0:02:18.6]}
18. Rxc8+ {[%clk 0:01:46.7]} 18... Rxc8 {[%clk 0:02:19.5]} 19. Rc1 {[%clk
0:01:47.4]} 19... Qd8 {[%clk 0:02:04.5]} 20. b6 {[%clk 0:01:28.4]} 20... Rxc1+
{[%clk 0:01:57.5]} 21. Qxc1 {[%clk 0:01:28.6]} 21... Qxb6 {[%clk 0:01:55.9]} 22.
Qc8+ {[%clk 0:01:21]} 22... Qd8 {[%clk 0:01:48.2]} 23. Qc3 {[%clk 0:01:18.8]}
23... Nc6 {[%clk 0:01:24.3]} 24. Bb5 {[%clk 0:01:09.1]} 24... Qa5 {[%clk
0:01:24.1]} 25. Qxa5 {[%clk 0:01:09]} 25... Nxa5 {[%clk 0:01:25]} 26. Bxa4
{[%clk 0:01:04.6]} 26... Bxa3 {[%clk 0:01:25.2]} 27. Bc7 {[%clk 0:00:58]} 27...
Nc4 {[%clk 0:01:22.3]} 28. Nb3 {[%clk 0:00:52.8]} 28... Bd6 {[%clk 0:01:21.8]}
29. Bxd6 {[%clk 0:00:47.1]} 29... Nxd6 {[%clk 0:01:21.2]} 30. Nc5 {[%clk
0:00:48]} 30... Kf8 {[%clk 0:01:18.8]} 31. Kf1 {[%clk 0:00:43.9]} 31... Ke7
{[%clk 0:01:18.4]} 32. Ke1 {[%clk 0:00:44.1]} 32... b6 {[%clk 0:01:16]} 33. Na6
{[%clk 0:00:42.7]} 33... Bd3 {[%clk 0:01:06.6]} 34. Nb4 {[%clk 0:00:42]} 34...
Bb5 {[%clk 0:01:05.1]} 35. Bc2 {[%clk 0:00:40.9]} 35... h6 {[%clk 0:01:02]} 36.
Kd2 {[%clk 0:00:41.3]} 36... Bf1 {[%clk 0:01:00.9]} 37. g3 {[%clk 0:00:41.1]}
37... Kd7 {[%clk 0:01:00.6]} 38. Kc3 {[%clk 0:00:40.9]} 38... Bb5 {[%clk
0:00:49.8]} 39. Bb3 {[%clk 0:00:36.7]} 39... Nc8 {[%clk 0:00:47.3]} 40. Bc2
{[%clk 0:00:33.2]} 40... Ne7 {[%clk 0:00:44.3]} 41. Bb1 {[%clk 0:00:32.7]} 41...
Nc6 {[%clk 0:00:43.9]} 42. Nxc6 {[%clk 0:00:30.5]} 42... Bxc6 {[%clk 0:00:42.7]}
43. Kb4 {[%clk 0:00:31.4]} 43... f6 {[%clk 0:00:41.9]} 44. Bd3 {[%clk
0:00:29.1]} 44... e5 {[%clk 0:00:41.5]} 45. Bf5+ {[%clk 0:00:29]} 45... Kd6
{[%clk 0:00:41.4]} 46. Bd3 {[%clk 0:00:29.6]} 46... Bd7 {[%clk 0:00:41.1]} 47.
Ba6 {[%clk 0:00:29]} 47... exd4 {[%clk 0:00:40.7]} 48. exd4 {[%clk 0:00:28.7]}
48... Ke6 {[%clk 0:00:40.8]} 49. Bd3 {[%clk 0:00:28.4]} 49... g5 {[%clk
0:00:38.9]} 50. Bc2 {[%clk 0:00:19.6]} 50... Bc6 {[%clk 0:00:36.2]} 51. Bd3
{[%clk 0:00:19.2]} 51... Be8 {[%clk 0:00:30.5]} 52. Bc2 {[%clk 0:00:19.4]} 52...
Bd7 {[%clk 0:00:25.8]} 53. Bd3 {[%clk 0:00:19.8]} 53... Kf7 {[%clk 0:00:24.8]}
54. Bc2 {[%clk 0:00:20.5]} 54... h5 {[%clk 0:00:24]} 55. Bd3 {[%clk 0:00:21.2]}
55... h4 {[%clk 0:00:23.7]} 56. Bc2 {[%clk 0:00:20.7]} 56... f5 {[%clk 0:00:22]}
57. Bd3 {[%clk 0:00:20.6]} 57... f4 {[%clk 0:00:22]} 58. Bc2 {[%clk 0:00:19.9]}
58... Kf6 {[%clk 0:00:21.9]} 59. Bd3 {[%clk 0:00:20.4]} 59... fxg3 {[%clk
0:00:20.6]} 60. fxg3 {[%clk 0:00:20.2]} 60... Bf5 {[%clk 0:00:19.4]} 61. Be2
{[%clk 0:00:20.2]} 61... Bd7 {[%clk 0:00:18.6]} 62. Bd3 {[%clk 0:00:20.5]} 62...
Be8 {[%clk 0:00:18.4]} 63. Bc2 {[%clk 0:00:20.9]} 63... Bg6 {[%clk 0:00:18.1]}
64. Bd1 {[%clk 0:00:21.2]} 64... Kf5 {[%clk 0:00:17.3]} 65. Bc2+ {[%clk
0:00:21.3]} 65... Kf6 {[%clk 0:00:17.4]} 66. Bd1 {[%clk 0:00:21.9]} 66... Be8
{[%clk 0:00:17.9]} 67. Bc2 {[%clk 0:00:21.6]} 67... Bd7 {[%clk 0:00:16.8]} 68.
Bd3 {[%clk 0:00:22]} 1/2-1/2

[Event "*** Titled Tuesday Blitz"]
[Site "Chess.com"]
[Date "2020.04.14"]
[Round "1"]
[White "Incognito_Knight"]
[Black "RestartingChess"]
[Result "1-0"]
[WhiteElo "2753"]
[BlackElo "2394"]
[TimeControl "180+1"]
[EndTime "10:08:46 PDT"]
[Termination "Incognito_Knight won by checkmate"]

1. d4 {[%clk 0:02:58.5]} 1... Nf6 {[%clk 0:02:59.8]} 2. c4 {[%clk 0:02:57.7]}
2... b6 {[%clk 0:03:00]} 3. Nc3 {[%clk 0:02:55.7]} 3... Bb7 {[%clk 0:03:00.3]}
4. Qc2 {[%clk 0:02:52.1]} 4... g6 {[%clk 0:02:59.7]} 5. e4 {[%clk 0:02:51.6]}
5... d6 {[%clk 0:02:58.6]} 6. Nf3 {[%clk 0:02:49.2]} 6... Bg7 {[%clk 0:02:58.9]}
7. Be2 {[%clk 0:02:48.9]} 7... O-O {[%clk 0:02:59.1]} 8. O-O {[%clk 0:02:49.1]}
8... Nbd7 {[%clk 0:02:57.7]} 9. h3 {[%clk 0:02:48.6]} 9... e5 {[%clk 0:02:57.8]}
10. d5 {[%clk 0:02:45.5]} 10... a5 {[%clk 0:02:57.2]} 11. Be3 {[%clk 0:02:41.3]}
11... Ne8 {[%clk 0:02:43]} 12. a3 {[%clk 0:02:40.2]} 12... f5 {[%clk 0:02:42.9]}
13. Ng5 {[%clk 0:02:38.7]} 13... Qe7 {[%clk 0:02:26.2]} 14. Ne6 {[%clk 0:02:35]}
14... Rf7 {[%clk 0:02:26.8]} 15. exf5 {[%clk 0:02:32.1]} 15... gxf5 {[%clk
0:02:26.2]} 16. Bh5 {[%clk 0:02:30.6]} 16... f4 {[%clk 0:02:20]} 17. Bxf7+
{[%clk 0:02:25.3]} 17... Qxf7 {[%clk 0:02:20.9]} 18. Bd2 {[%clk 0:02:21.1]}
18... Nf8 {[%clk 0:02:21.2]} 19. Nxf8 {[%clk 0:01:47.7]} 19... Qxf8 {[%clk
0:02:22.1]} 20. f3 {[%clk 0:01:32.1]} 20... Bc8 {[%clk 0:02:22]} 21. b4 {[%clk
0:01:28.7]} 21... axb4 {[%clk 0:02:19]} 22. axb4 {[%clk 0:01:28.5]} 22... Rxa1
{[%clk 0:02:19.6]} 23. Rxa1 {[%clk 0:01:29]} 23... Bf5 {[%clk 0:02:20]} 24. Ne4
{[%clk 0:01:28.7]} 24... Nf6 {[%clk 0:02:20.1]} 25. Ra7 {[%clk 0:01:16.8]} 25...
Bxe4 {[%clk 0:02:07.2]} 26. fxe4 {[%clk 0:01:14.7]} 26... Qb8 {[%clk 0:01:53.4]}
27. Qa4 {[%clk 0:00:55.9]} 27... Bf8 {[%clk 0:01:37.3]} 28. Qa6 {[%clk
0:00:23.2]} 28... b5 {[%clk 0:01:26.5]} 29. c5 {[%clk 0:00:10.1]} 29... Qd8
{[%clk 0:00:55.6]} 30. Ra8 {[%clk 0:00:09.8]} 30... Qe7 {[%clk 0:00:50.5]} 31.
cxd6 {[%clk 0:00:09.9]} 31... Qxd6 {[%clk 0:00:43.2]} 32. Qxd6 {[%clk
0:00:07.5]} 32... cxd6 {[%clk 0:00:44.1]} 33. Be1 {[%clk 0:00:04.4]} 33... Nxe4
{[%clk 0:00:43.4]} 34. Rb8 {[%clk 0:00:04.8]} 34... Kf7 {[%clk 0:00:30.2]} 35.
Rxb5 {[%clk 0:00:05]} 35... Nf6 {[%clk 0:00:30.3]} 36. Rb7+ {[%clk 0:00:05.3]}
36... Kg6 {[%clk 0:00:29.6]} 37. b5 {[%clk 0:00:05.7]} 37... Nxd5 {[%clk
0:00:29.8]} 38. Rb8 {[%clk 0:00:05.8]} 38... Be7 {[%clk 0:00:18.5]} 39. b6
{[%clk 0:00:06.2]} 39... Nxb6 {[%clk 0:00:08.7]} 40. Rxb6 {[%clk 0:00:07.1]}
40... Kf5 {[%clk 0:00:09.4]} 41. Bb4 {[%clk 0:00:06.9]} 41... Ke6 {[%clk
0:00:10.1]} 42. Ra6 {[%clk 0:00:06.8]} 42... Kd5 {[%clk 0:00:10.7]} 43. Kf2
{[%clk 0:00:06.5]} 43... Bg5 {[%clk 0:00:10.6]} 44. Rxd6+ {[%clk 0:00:05.2]}
44... Ke4 {[%clk 0:00:10.6]} 45. Ra6 {[%clk 0:00:03.8]} 45... h6 {[%clk
0:00:10.7]} 46. Ke2 {[%clk 0:00:03.9]} 46... Kf5 {[%clk 0:00:10]} 47. Be1 {[%clk
0:00:04.2]} 47... Ke4 {[%clk 0:00:10.9]} 48. Ra4+ {[%clk 0:00:04.3]} 48... Kf5
{[%clk 0:00:11.1]} 49. Ra5 {[%clk 0:00:05.2]} 49... Bf6 {[%clk 0:00:11.4]} 50.
Bc3 {[%clk 0:00:05.1]} 50... Ke4 {[%clk 0:00:11.8]} 51. Ra4+ {[%clk 0:00:05]}
51... Kf5 {[%clk 0:00:12.3]} 52. Ra5 {[%clk 0:00:05.4]} 52... Ke4 {[%clk
0:00:12.5]} 53. Rb5 {[%clk 0:00:05.8]} 53... h5 {[%clk 0:00:12.4]} 54. Ra5
{[%clk 0:00:05.6]} 54... h4 {[%clk 0:00:12.6]} 55. Rb5 {[%clk 0:00:05.8]} 55...
Bg7 {[%clk 0:00:13.1]} 56. Be1 {[%clk 0:00:05.9]} 56... Bf6 {[%clk 0:00:13.2]}
57. Bf2 {[%clk 0:00:06.3]} 57... Kf5 {[%clk 0:00:13.4]} 58. Kf3 {[%clk
0:00:06.4]} 58... Be7 {[%clk 0:00:13.3]} 59. Be1 {[%clk 0:00:06.1]} 59... Bf6
{[%clk 0:00:13.8]} 60. Bc3 {[%clk 0:00:06.2]} 60... Bg7 {[%clk 0:00:14.3]} 61.
Bb2 {[%clk 0:00:06.5]} 61... Bf6 {[%clk 0:00:14.8]} 62. Bc1 {[%clk 0:00:06.8]}
62... Bg7 {[%clk 0:00:15]} 63. Bxf4 {[%clk 0:00:07]} 63... Bf6 {[%clk
0:00:15.3]} 64. Be3 {[%clk 0:00:07.4]} 64... Be7 {[%clk 0:00:15.7]} 65. Bf2
{[%clk 0:00:07.5]} 65... Bf6 {[%clk 0:00:16.2]} 66. Be1 {[%clk 0:00:07.4]} 66...
Bg5 {[%clk 0:00:16.5]} 67. Bc3 {[%clk 0:00:06.5]} 67... Bf6 {[%clk 0:00:17.4]}
68. Bxe5 {[%clk 0:00:05.2]} 68... Bxe5 {[%clk 0:00:18.3]} 69. Rxe5+ {[%clk
0:00:05.3]} 69... Kxe5 {[%clk 0:00:19.2]} 70. Kg4 {[%clk 0:00:05.7]} 70... Kf6
{[%clk 0:00:20.1]} 71. Kxh4 {[%clk 0:00:06.2]} 71... Kg6 {[%clk 0:00:21]} 72.
Kg4 {[%clk 0:00:06.7]} 72... Kh6 {[%clk 0:00:21.9]} 73. h4 {[%clk 0:00:07.2]}
73... Kg6 {[%clk 0:00:22.8]} 74. h5+ {[%clk 0:00:07.7]} 74... Kh6 {[%clk
0:00:23.7]} 75. Kh4 {[%clk 0:00:08.4]} 75... Kh7 {[%clk 0:00:24.6]} 76. g4
{[%clk 0:00:09]} 76... Kg7 {[%clk 0:00:25.5]} 77. g5 {[%clk 0:00:09.7]} 77...
Kh7 {[%clk 0:00:26.4]} 78. Kg4 {[%clk 0:00:10.4]} 78... Kg7 {[%clk 0:00:27.3]}
79. Kf5 {[%clk 0:00:11.1]} 79... Kh7 {[%clk 0:00:28.2]} 80. h6 {[%clk
0:00:11.4]} 80... Kh8 {[%clk 0:00:28.6]} 81. Kg6 {[%clk 0:00:06.1]} 81... Kg8
{[%clk 0:00:29.5]} 82. h7+ {[%clk 0:00:05.1]} 82... Kh8 {[%clk 0:00:30.4]} 83.
Kf7 {[%clk 0:00:05.5]} 83... Kxh7 {[%clk 0:00:30]} 84. g6+ {[%clk 0:00:06.4]}
84... Kh8 {[%clk 0:00:30.9]} 85. g7+ {[%clk 0:00:06.8]} 85... Kh7 {[%clk
0:00:31.8]} 86. g8=Q+ {[%clk 0:00:07.7]} 86... Kh6 {[%clk 0:00:32.7]} 87. Qg6#
{[%clk 0:00:08.2]} 1-0

[Event "*** Titled Tuesday Blitz"]
[Site "Chess.com"]
[Date "2020.04.14"]
[Round "1"]
[White "maxsergej"]
[Black "ZiggyStardust64"]
[Result "0-1"]
[WhiteElo "2240"]
[BlackElo "2605"]
[TimeControl "180+1"]
[EndTime "10:08:46 PDT"]
[Termination "ZiggyStardust64 won on time"]

1. e4 {[%clk 0:02:59.7]} 1... e6 {[%clk 0:02:58.3]} 2. d4 {[%clk 0:02:59.4]}
2... d5 {[%clk 0:02:58.6]} 3. Nd2 {[%clk 0:02:59.5]} 3... Be7 {[%clk 0:02:58.3]}
4. Bd3 {[%clk 0:02:58.4]} 4... c5 {[%clk 0:02:58]} 5. c3 {[%clk 0:02:57.9]} 5...
cxd4 {[%clk 0:02:57.4]} 6. cxd4 {[%clk 0:02:57.7]} 6... dxe4 {[%clk 0:02:55.1]}
7. Nxe4 {[%clk 0:02:57.8]} 7... Nf6 {[%clk 0:02:55.5]} 8. Nf3 {[%clk 0:02:55.6]}
8... Bd7 {[%clk 0:02:56.1]} 9. O-O {[%clk 0:02:55.2]} 9... Bc6 {[%clk 0:02:56]}
10. Qe2 {[%clk 0:02:54.8]} 10... Nxe4 {[%clk 0:02:55]} 11. Bxe4 {[%clk
0:02:54.9]} 11... Bxe4 {[%clk 0:02:55.3]} 12. Qxe4 {[%clk 0:02:55.1]} 12... Nc6
{[%clk 0:02:54.9]} 13. Bf4 {[%clk 0:02:46]} 13... Qd5 {[%clk 0:02:40.8]} 14.
Qxd5 {[%clk 0:02:44.4]} 14... exd5 {[%clk 0:02:41.7]} 15. Rfe1 {[%clk
0:02:31.2]} 15... O-O {[%clk 0:02:29.7]} 16. Rad1 {[%clk 0:02:24.9]} 16... Rfd8
{[%clk 0:02:10.8]} 17. Ne5 {[%clk 0:02:21.8]} 17... Nxe5 {[%clk 0:02:09.8]} 18.
Bxe5 {[%clk 0:02:18.4]} 18... Bb4 {[%clk 0:02:04.4]} 19. Rf1 {[%clk 0:02:12.7]}
19... Rac8 {[%clk 0:01:57.4]} 20. a3 {[%clk 0:02:12.6]} 20... Ba5 {[%clk
0:01:52.1]} 21. Rc1 {[%clk 0:02:11.7]} 21... Bb6 {[%clk 0:01:47.5]} 22. Rc3
{[%clk 0:01:59.7]} 22... f6 {[%clk 0:01:38.1]} 23. Bf4 {[%clk 0:01:54.3]} 23...
Bxd4 {[%clk 0:01:36]} 24. Rd3 {[%clk 0:01:54.6]} 24... Bxb2 {[%clk 0:01:30.8]}
25. Rb3 {[%clk 0:01:51.9]} 25... Bd4 {[%clk 0:00:52.6]} 26. Rxb7 {[%clk
0:01:39.4]} 26... Bb6 {[%clk 0:00:53.1]} 27. h3 {[%clk 0:01:26.8]} 27... d4
{[%clk 0:00:53.1]} 28. Re1 {[%clk 0:01:25.7]} 28... Re8 {[%clk 0:00:52.8]} 29.
Rbe7 {[%clk 0:01:22.3]} 29... Rxe7 {[%clk 0:00:47.6]} 30. Rxe7 {[%clk
0:01:21.8]} 30... Rd8 {[%clk 0:00:48]} 31. Bd2 {[%clk 0:01:18.1]} 31... Rc8
{[%clk 0:00:34.6]} 32. Rd7 {[%clk 0:01:12.8]} 32... Rc2 {[%clk 0:00:34]} 33. Bb4
{[%clk 0:01:09]} 33... Rc1+ {[%clk 0:00:29]} 34. Kh2 {[%clk 0:01:09.1]} 34... h5
{[%clk 0:00:29.3]} 35. g3 {[%clk 0:01:06.9]} 35... Rc2 {[%clk 0:00:28.8]} 36.
Kg2 {[%clk 0:00:53.6]} 36... Ra2 {[%clk 0:00:29]} 37. Kf3 {[%clk 0:00:51.3]}
37... Rb2 {[%clk 0:00:27.3]} 38. Rd6 {[%clk 0:00:37.8]} 38... Kf7 {[%clk
0:00:18.8]} 39. g4 {[%clk 0:00:33]} 39... hxg4+ {[%clk 0:00:17.5]} 40. hxg4
{[%clk 0:00:32.7]} 40... Kg6 {[%clk 0:00:17.4]} 41. Rd7 {[%clk 0:00:28.6]} 41...
Rb3+ {[%clk 0:00:14.3]} 42. Ke2 {[%clk 0:00:25.2]} 42... d3+ {[%clk 0:00:13.3]}
43. Rxd3 {[%clk 0:00:23.6]} 43... Rxd3 {[%clk 0:00:13.2]} 44. Kxd3 {[%clk
0:00:23.7]} 44... Bxf2 {[%clk 0:00:14.1]} 45. Ke4 {[%clk 0:00:23]} 45... Kg5
{[%clk 0:00:13.7]} 46. Kf3 {[%clk 0:00:23.2]} 46... Bb6 {[%clk 0:00:13.4]} 47.
a4 {[%clk 0:00:23.2]} 47... a6 {[%clk 0:00:11.5]} 48. Bf8 {[%clk 0:00:22.6]}
48... Kg6 {[%clk 0:00:10.1]} 49. Bd6 {[%clk 0:00:21.4]} 49... Kf7 {[%clk
0:00:10.3]} 50. Bb4 {[%clk 0:00:20.1]} 50... Ke6 {[%clk 0:00:10.5]} 51. Ke4
{[%clk 0:00:20.2]} 51... g6 {[%clk 0:00:10.9]} 52. Bf8 {[%clk 0:00:19.7]} 52...
Bc7 {[%clk 0:00:10.8]} 53. Bb4 {[%clk 0:00:19.2]} 53... Bd6 {[%clk 0:00:11.1]}
54. Bc3 {[%clk 0:00:19.4]} 54... Be5 {[%clk 0:00:11.5]} 55. Bb4 {[%clk
0:00:18.7]} 55... f5+ {[%clk 0:00:11.8]} 56. gxf5+ {[%clk 0:00:18.4]} 56...
gxf5+ {[%clk 0:00:12.7]} 57. Kd3 {[%clk 0:00:16.7]} 57... Kd5 {[%clk 0:00:13.1]}
58. Be7 {[%clk 0:00:15.7]} 58... Bd6 {[%clk 0:00:13.1]} 59. Bg5 {[%clk 0:00:15]}
59... Be5 {[%clk 0:00:13.1]} 60. Bd2 {[%clk 0:00:13.5]} 60... Kc5 {[%clk
0:00:12.4]} 61. Ke3 {[%clk 0:00:11.1]} 61... Kc4 {[%clk 0:00:11.9]} 62. Kf3
{[%clk 0:00:11.1]} 62... Kb3 {[%clk 0:00:12.1]} 63. a5 {[%clk 0:00:10.5]} 63...
Kc4 {[%clk 0:00:12.5]} 64. Ke2 {[%clk 0:00:08.7]} 64... Kb5 {[%clk 0:00:12.8]}
65. Kf3 {[%clk 0:00:08.2]} 65... Bc7 {[%clk 0:00:13.4]} 66. Be3 {[%clk
0:00:04.9]} 66... Bxa5 {[%clk 0:00:13.6]} 67. Kf4 {[%clk 0:00:04.9]} 67... Bc3
{[%clk 0:00:13.9]} 68. Kxf5 {[%clk 0:00:05.1]} 68... a5 {[%clk 0:00:14.8]} 69.
Bc1 {[%clk 0:00:05.3]} 69... Kb4 {[%clk 0:00:15]} 70. Ke4 {[%clk 0:00:01.8]}
70... Kb3 {[%clk 0:00:15.5]} 71. Kd3 {[%clk 0:00:01.9]} 71... a4 {[%clk
0:00:16.4]} 0-1

[Event "*** Titled Tuesday Blitz"]
[Site "Chess.com"]
[Date "2020.04.14"]
[Round "1"]
[White "Casper_Schoppen"]
[Black "korbul"]
[Result "0-1"]
[WhiteElo "2993"]
[BlackElo "2519"]
[TimeControl "180+1"]
[EndTime "10:08:50 PDT"]
[Termination "korbul won on time"]

1. d4 {[%clk 0:02:59.6]} 1... Nf6 {[%clk 0:02:59.4]} 2. Nf3 {[%clk 0:02:58]}
2... b6 {[%clk 0:02:59.1]} 3. g3 {[%clk 0:02:53.4]} 3... Bb7 {[%clk 0:02:58.9]}
4. Bg2 {[%clk 0:02:53.6]} 4... g6 {[%clk 0:02:59.2]} 5. O-O {[%clk 0:02:52.4]}
5... Bg7 {[%clk 0:02:59.4]} 6. c4 {[%clk 0:02:52.3]} 6... O-O {[%clk 0:02:58.8]}
7. h4 {[%clk 0:02:47.3]} 7... d6 {[%clk 0:02:53.1]} 8. Nc3 {[%clk 0:02:46]} 8...
Ne4 {[%clk 0:02:52.4]} 9. h5 {[%clk 0:02:40]} 9... Nxc3 {[%clk 0:02:51.4]} 10.
bxc3 {[%clk 0:02:40.9]} 10... c5 {[%clk 0:02:50.7]} 11. Bg5 {[%clk 0:02:31.8]}
11... Nc6 {[%clk 0:02:46.5]} 12. Qd3 {[%clk 0:02:21.6]} 12... Na5 {[%clk
0:02:42]} 13. h6 {[%clk 0:02:16.7]} 13... Bf6 {[%clk 0:02:37.2]} 14. Bf4 {[%clk
0:02:04.4]} 14... Ba6 {[%clk 0:02:34.6]} 15. Nd2 {[%clk 0:01:59.1]} 15... Rc8
{[%clk 0:02:33.8]} 16. d5 {[%clk 0:01:57.9]} 16... Qd7 {[%clk 0:02:23.5]} 17. a4
{[%clk 0:01:55.6]} 17... Rcd8 {[%clk 0:02:17.4]} 18. e4 {[%clk 0:01:40.9]} 18...
e5 {[%clk 0:02:14]} 19. Be3 {[%clk 0:01:28.1]} 19... Qe7 {[%clk 0:02:10.1]} 20.
Rfe1 {[%clk 0:01:25.4]} 20... Bg5 {[%clk 0:02:00.8]} 21. Bf1 {[%clk 0:01:15.6]}
21... f5 {[%clk 0:01:40.3]} 22. exf5 {[%clk 0:01:14.8]} 22... gxf5 {[%clk
0:01:40]} 23. f4 {[%clk 0:00:41.8]} 23... e4 {[%clk 0:01:38.9]} 24. Qe2 {[%clk
0:00:37.6]} 24... Bf6 {[%clk 0:01:37.3]} 25. Rac1 {[%clk 0:00:35.7]} 25... Kh8
{[%clk 0:01:35]} 26. Qh5 {[%clk 0:00:34.7]} 26... Bc8 {[%clk 0:01:32.1]} 27. Kf2
{[%clk 0:00:33.1]} 27... Qf7 {[%clk 0:01:15.9]} 28. Qxf7 {[%clk 0:00:33.2]}
28... Rxf7 {[%clk 0:01:16.6]} 29. Nb1 {[%clk 0:00:33.6]} 29... Bd7 {[%clk
0:01:07.7]} 30. Na3 {[%clk 0:00:23.2]} 30... Bxa4 {[%clk 0:01:07.2]} 31. Nb5
{[%clk 0:00:19.7]} 31... Bxb5 {[%clk 0:01:02.4]} 32. cxb5 {[%clk 0:00:20.6]}
32... Be7 {[%clk 0:00:53.1]} 33. c4 {[%clk 0:00:19.8]} 33... Nb3 {[%clk
0:00:46.5]} 34. Rcd1 {[%clk 0:00:18.4]} 34... Bf6 {[%clk 0:00:45.7]} 35. Be2
{[%clk 0:00:18.7]} 35... Nd4 {[%clk 0:00:44.4]} 36. Bh5 {[%clk 0:00:18]} 36...
Re7 {[%clk 0:00:42.3]} 37. Rh1 {[%clk 0:00:17.9]} 37... Rg8 {[%clk 0:00:41.7]}
38. Rh3 {[%clk 0:00:17.2]} 38... Nc2 {[%clk 0:00:37.7]} 39. Bc1 {[%clk
0:00:13.2]} 39... Nb4 {[%clk 0:00:34.3]} 40. Ke2 {[%clk 0:00:12.5]} 40... Nd3
{[%clk 0:00:32]} 41. Be3 {[%clk 0:00:13]} 41... Nb2 {[%clk 0:00:26.1]} 42. Rc1
{[%clk 0:00:12.7]} 42... Na4 {[%clk 0:00:25.9]} 43. Kd2 {[%clk 0:00:12.1]} 43...
Nb2 {[%clk 0:00:23.6]} 44. Rc2 {[%clk 0:00:12.2]} 44... Nd3 {[%clk 0:00:23.2]}
45. Ra2 {[%clk 0:00:12.8]} 45... Nb4 {[%clk 0:00:20.3]} 46. Ra4 {[%clk
0:00:13.2]} 46... Nd3 {[%clk 0:00:17.3]} 47. Ra2 {[%clk 0:00:11.1]} 47... Bd4
{[%clk 0:00:16.3]} 48. Be2 {[%clk 0:00:09.9]} 48... Bxe3+ {[%clk 0:00:14]} 49.
Kxe3 {[%clk 0:00:10.8]} 49... Nb4 {[%clk 0:00:12.7]} 50. Ra4 {[%clk 0:00:11.4]}
50... Rg6 {[%clk 0:00:11.5]} 51. Kd2 {[%clk 0:00:10.5]} 51... Rf6 {[%clk
0:00:11.2]} 52. Ra3 {[%clk 0:00:10.4]} 52... Re8 {[%clk 0:00:10.2]} 53. Rh5
{[%clk 0:00:09.2]} 53... Rg8 {[%clk 0:00:09.3]} 54. Re3 {[%clk 0:00:09.4]} 54...
Rgg6 {[%clk 0:00:08.5]} 55. Ra3 {[%clk 0:00:05.3]} 55... Rf7 {[%clk 0:00:06.8]}
56. Ra1 {[%clk 0:00:04.3]} 56... Rxg3 {[%clk 0:00:05.9]} 57. Rah1 {[%clk
0:00:04.1]} 57... Rg2 {[%clk 0:00:04.5]} 58. Rg5 {[%clk 0:00:04.2]} 58... Rxg5
{[%clk 0:00:03.6]} 59. fxg5 {[%clk 0:00:05.1]} 59... f4 {[%clk 0:00:03.8]} 60.
Bh5 {[%clk 0:00:06]} 60... Rf5 {[%clk 0:00:03]} 61. Rg1 {[%clk 0:00:06.4]} 61...
f3 {[%clk 0:00:03.3]} 62. Ke3 {[%clk 0:00:06.3]} 62... Nd3 {[%clk 0:00:03.9]}
63. Be8 {[%clk 0:00:05.3]} 63... Ne5 {[%clk 0:00:04.8]} 64. Kf2 {[%clk
0:00:03.9]} 64... Nxc4 {[%clk 0:00:04.7]} 65. Bh5 {[%clk 0:00:03.4]} 65... e3+
{[%clk 0:00:05.6]} 66. Kf1 {[%clk 0:00:03.4]} 66... f2 {[%clk 0:00:06.3]} 67.
Rh1 {[%clk 0:00:03.4]} 67... Nd2+ {[%clk 0:00:07.2]} 68. Ke2 {[%clk 0:00:03.9]}
68... f1=Q+ {[%clk 0:00:07.7]} 69. Rxf1 {[%clk 0:00:04.4]} 69... Nxf1 {[%clk
0:00:07.3]} 0-1